[Event "WYCC 2018 G14"]
[Site "Halkidiki"]
[Date "2018.10.30"]
[Round "11"]
[White "Rodriguez Redondo, Adhara"]
[Black "Allahverdiyeva, Ayan"]
[Result "1-0"]
[ECO "B83"]
[WhiteElo "1911"]
[BlackElo "2116"]
[Annotator "NA"]
[PlyCount "95"]
[EventDate "2018.10.20"]
[EventType "swiss"]
[EventCountry "GRE"]
[SourceTitle "playchess.com"]
[Source "ChessBase"]
[SourceQuality "1"]
[TimeControl "40/5400+30:1800+30"]

1. e4 {[%emt 0:00:00]} c5 {[%emt 0:00:49]} 2. Nf3 {[%emt 0:00:00]} e6 {[%emt 0:00:05]} 3. d4 {[%emt 0:00:00]} cxd4 {[%emt 0:00:02]} 4. Nxd4 {[%emt 0:00:00]} Nf6 {[%emt 0:00:04]} 5. Nc3 {[%emt 0:00:02]} d6 {[%emt 0:00:06]} 6. Be2 {[%emt 0:00:09]} Be7 {[%emt 0:00:04]} 7. O-O {[%emt 0:00:12]} O-O {[%emt 0:00:05]} 8. f4 {[%emt 0:00:20]} Nc6 {[%emt 0:00:04]} 9. Be3 {[%emt 0:00:12]} e5 {[%emt 0:00:14]} 10. fxe5 {[%emt 0:00:11]} dxe5 {[%emt 0:03:50]} 11. Nf5 {[%emt 0:00:06]} Bxf5 {[%emt 0:00:31]} 12. Rxf5 {[%emt 0:00:06]} Qxd1+ {[%emt 0:00:12]} 13. Rxd1 {[%emt 0:00:14]} g6 {[%emt 0:00:39]} 14. Rf2 {[%emt 0:00:30]} Kg7 {[%emt 0:07:24] B83: Sicilian Scheveningen: 6 Be2, lines without ...a6} 15. Bg5 {[%emt 0:08:34]} (15. h3 Rac8 16. Bb5 a6 17. Bxc6 Rxc6 18. Nd5 Nxe4 19. Nxe7 Nxf2 20. Bxf2 Rxc2 21. b4 Rc7 22. Bc5 {0-1 (46) Polzin,R (2500)-Sokolov,A (2559) Germany 2008}) 15... Nd4 {[%emt 0:03:07]} 16. Bxf6+ $146 {[%emt 0:01:18]} ({Predecessor:} 16. Bc4 Rac8 17. b3 Ng8 18. Be3 f5 19. exf5 gxf5 20. Bxd4 exd4 21. Nb5 Bg5 22. Nxd4 Be3 {1-0 (58) Saveliev,A (2372)-Gueci,T (2158) Stockholm 2017}) 16... Bxf6 {[%emt 0:00:07]} 17. Nd5 {[%emt 0:00:18]} Bg5 {[%emt 0:04:06]} 18. c3 {[%emt 0:00:29]} Ne6 {[%emt 0:00:20]} 19. g3 {[%emt 0:06:10]} Nc5 {[%emt 0:01:41]} 20. Bd3 {[%emt 0:03:52]} a5 {[%emt 0:06:58]} 21. h4 {[%emt 0:05:31]} Bd8 {[%emt 0:00:53]} 22. Re2 {[%emt 0:05:00]} h5 {[%emt 0:01:29]} 23. Bb5 {[%emt 0:07:16]} Rc8 {[%emt 0:07:27]} 24. Kg2 {[%emt 0:08:32]} Bc7 {[%emt 0:01:13]} 25. b4 {[%emt 0:08:53]} axb4 {[%emt 0:00:33]} 26. cxb4 {[%emt 0:00:10]} Ne6 {[%emt 0:00:10]} 27. Bd7 {[%emt 0:04:28]} Nd4 {[%emt 0:06:42]} 28. Bxc8 {[%emt 0:02:01]} Rxc8 {[%emt 0:03:54]} 29. Rb2 {[%emt 0:10:13]} Bd6 {[%emt 0:00:46]} 30. Rd3 {[%emt 0:05:52]} Rc4 {[%emt 0:02:50]} 31. Rc3 {[%emt 0:01:13]} Rxc3 {[%emt 0:00:20]} 32. Nxc3 {[%emt 0:00:07]} f5 {[%emt 0:00:03]} 33. a4 {[%emt 0:01:52]} f4 {[%emt 0:01:26]} 34. gxf4 {[%emt 0:02:18]} exf4 {[%emt 0:00:38]} 35. Nd5 {[%emt 0:01:00]} g5 {[%emt 0:03:11]} 36. hxg5 {[%emt 0:02:17]} f3+ {[%emt 0:00:37]} 37. Kf2 {[%emt 0:06:46]} h4 {[%emt 0:00:11]} 38. Ke3 {[%emt 0:01:06]} Be5 {[%emt 0:00:55]} 39. Rb1 {[%emt 0:02:06]} Kg6 {[%emt 0:01:48]} 40. b5 {[%emt 0:00:00]} h3 {[%emt 0:00:00]} 41. Nf4+ {[%emt 0:06:02]} Kxg5 {[%emt 0:17:00]} 42. Nxh3+ {[%emt 0:00:26]} Kg4 {[%emt 0:02:03]} 43. Nf2+ {[%emt 0:00:43]} Kg3 {[%emt 0:00:20]} 44. Rg1+ {[%emt 0:00:13]} Kh2 $18 {[%emt 0:00:07]} 45. Rg6 {[%emt 0:01:07]} Nc2+ {[%emt 0:01:13]} 46. Kxf3 {[%emt 0:00:28]} Ne1+ {[%emt 0:00:22]} 47. Ke2 {[%emt 0:00:17]} Ng2 {[%emt 0:00:27]} 48. Ng4+ {[%emt 0:00:12]} 1-0

[Event "WYCC 2018 G14"]
[Site "Halkidiki"]
[Date "2018.10.30"]
[Round "11"]
[White "Ehsani, Yassamin"]
[Black "Yellamraju, Ambica"]
[Result "1/2-1/2"]
[ECO "D31"]
[WhiteElo "1875"]
[BlackElo "1647"]
[Annotator "NA"]
[PlyCount "98"]
[EventDate "2018.10.20"]
[EventType "swiss"]
[EventCountry "GRE"]
[SourceTitle "playchess.com"]
[Source "ChessBase"]
[SourceQuality "1"]
[TimeControl "40/5400+30:1800+30"]

1. d4 {[%emt 0:00:00]} d5 {[%emt 0:00:00]} 2. c4 {[%emt 0:00:00]} e6 {[%emt 0:00:00]} 3. Nc3 {[%emt 0:00:00]} Be7 {[%emt 0:00:00]} 4. cxd5 {[%emt 0:00:46]} exd5 {[%emt 0:00:03]} 5. Bf4 {[%emt 0:00:06]} c6 {[%emt 0:00:15]} 6. e3 {[%emt 0:01:00]} Bd6 {[%emt 0:00:24]} 7. Bxd6 {[%emt 0:03:40]} Qxd6 {[%emt 0:00:10]} 8. Bd3 {[%emt 0:00:41]} Ne7 {[%emt 0:00:51]} 9. Nge2 {[%emt 0:00:43]} Bf5 {[%emt 0:01:30]} 10. O-O {[%emt 0:01:04]} O-O {[%emt 0:01:28]} 11. a3 {[%emt 0:01:32]} a5 {[%emt 0:02:11]} 12. Bxf5 {[%emt 0:01:36]} Nxf5 {[%emt 0:00:55]} 13. Qb1 {[%emt 0:03:56]} g6 {[%emt 0:08:55]} 14. b4 {[%emt 0:04:14]} axb4 {[%emt 0:05:45]} 15. Qxb4 {[%emt 0:00:57]} Nd7 {[%emt 0:05:52]} 16. Na4 {[%emt 0:03:53]} Qxb4 {[%emt 0:16:13]} 17. axb4 {[%emt 0:00:35]} Nd6 {[%emt 0:00:12]} 18. Nec3 {[%emt 0:05:35]} f5 {[%emt 0:05:18]} 19. Rfb1 {[%emt 0:02:29]} b5 {[%emt 0:05:57]} 20. Nb2 {[%emt 0:01:33]} Nb6 {[%emt 0:01:23]} 21. g3 {[%emt 0:03:55]} g5 {[%emt 0:01:36]} 22. f3 {[%emt 0:07:48]} Nbc4 {[%emt 0:02:00]} 23. Nxc4 {[%emt 0:01:31]} Nxc4 {[%emt 0:00:17]} 24. Kf2 {[%emt 0:00:44]} Rfe8 {[%emt 0:01:53]} 25. Nd1 {[%emt 0:04:31]} Kf7 {[%emt 0:01:31]} 26. f4 {[%emt 0:06:36]} h6 {[%emt 0:01:07]} 27. h3 {[%emt 0:04:00]} Kg6 {[%emt 0:01:44]} 28. Rc1 {[%emt 0:02:48]} h5 {[%emt 0:01:22]} 29. h4 {[%emt 0:01:50]} g4 {[%emt 0:05:18]} 30. Ke2 {[%emt 0:00:48]} Kf6 {[%emt 0:00:55]} 31. Rcb1 {[%emt 0:01:09]} Ke6 {[%emt 0:00:24]} 32. Kd3 {[%emt 0:02:25]} Kd6 {[%emt 0:00:34]} 33. Rc1 {[%emt 0:01:14]} Kc7 {[%emt 0:00:54]} 34. Rcb1 {[%emt 0:01:18]} Kb6 {[%emt 0:00:07]} 35. Rc1 {[%emt 0:00:55]} Ra4 {[%emt 0:01:32]} 36. Rxa4 {[%emt 0:00:36]} bxa4 {[%emt 0:00:03]} 37. Ra1 {[%emt 0:01:10]} a3 {[%emt 0:01:11]} 38. Rb1 {[%emt 0:00:34]} Re7 {[%emt 0:02:36]} 39. Rc1 {[%emt 0:00:47]} Kb5 {[%emt 0:01:27]} 40. Rb1 {[%emt 0:00:00]} Ka6 {[%emt 0:00:00]} 41. Rc1 {[%emt 0:02:34]} Rb7 {[%emt 0:03:42]} 42. Rb1 {[%emt 0:00:34]} Rb8 {[%emt 0:07:24]} 43. Kc3 {[%emt 0:00:46]} Rb7 {[%emt 0:08:27]} 44. Kd3 {[%emt 0:01:07]} a2 {[%emt 0:04:09]} 45. Ra1 {[%emt 0:00:12]} Rxb4 {[%emt 0:00:19]} 46. Rxa2+ {[%emt 0:00:20]} Kb7 {[%emt 0:00:31]} 47. Kc2 {[%emt 0:01:48]} Nd6 {[%emt 0:01:25]} 48. Nf2 {[%emt 0:00:57]} Nc4 {[%emt 0:03:22]} 49. Nd1 {[%emt 0:00:15]} Nd6 1/2-1/2

[Event "WYCC 2018 G14"]
[Site "Halkidiki"]
[Date "2018.10.30"]
[Round "11"]
[White "Moracchini, Margaux"]
[Black "Mocanu, Paula"]
[Result "1-0"]
[ECO "C45"]
[WhiteElo "1838"]
[BlackElo "1680"]
[Annotator "NA"]
[PlyCount "77"]
[EventDate "2018.10.20"]
[EventType "swiss"]
[EventCountry "GRE"]
[SourceTitle "playchess.com"]
[Source "ChessBase"]
[SourceQuality "1"]
[TimeControl "40/5400+30:1800+30"]

1. e4 {[%emt 0:00:00]} e5 {[%emt 0:00:00]} 2. Nf3 {[%emt 0:00:00]} Nc6 {[%emt 0:00:00]} 3. d4 {[%emt 0:00:00]} exd4 {[%emt 0:00:00]} 4. Nxd4 {[%emt 0:00:00]} Bc5 {[%emt 0:00:23]} 5. Be3 {[%emt 0:00:06]} Qf6 {[%emt 0:04:36]} 6. Nb5 {[%emt 0:01:18]} Bxe3 {[%emt 0:00:42]} 7. fxe3 {[%emt 0:00:05]} Qd8 {[%emt 0:11:02]} 8. Qg4 {[%emt 0:00:46]} g6 {[%emt 0:02:25]} 9. Qf4 {[%emt 0:00:06]} d6 {[%emt 0:00:35]} 10. Bc4 {[%emt 0:00:20]} Ne5 {[%emt 0:10:06]} 11. O-O {[%emt 0:01:44]} Qe7 {[%emt 0:01:27]} 12. N1c3 {[%emt 0:02:02]} Nf6 {[%emt 0:56:58]} 13. Qxf6 {[%emt 0:01:52]} Qxf6 {[%emt 0:00:04]} 14. Rxf6 {[%emt 0:00:16]} O-O {[%emt 0:01:55]} 15. Be2 {[%emt 0:04:20]} Bg4 {[%emt 0:01:08]} 16. Bxg4 {[%emt 0:01:50]} Nxg4 17. Rf3 Ne5 {[%emt 0:02:00]} 18. Rf2 {[%emt 0:02:06]} Nc4 {[%emt 0:02:17]} 19. Nxc7 {[%emt 0:00:29]} Rad8 {[%emt 0:00:33]} 20. N3d5 {[%emt 0:03:01]} Kg7 {[%emt 0:01:08]} 21. Raf1 {[%emt 0:01:47]} Rc8 {[%emt 0:02:08]} 22. b3 {[%emt 0:00:32]} Nxe3 {[%emt 0:00:29]} 23. Nxe3 {[%emt 0:00:39]} Rxc7 {[%emt 0:00:05]} 24. Nd5 {[%emt 0:00:31]} Rcc8 {[%emt 0:00:46]} 25. Rf6 {[%emt 0:00:59]} Rxc2 {[%emt 0:00:40]} 26. Rxd6 {[%emt 0:00:23]} Rxa2 {[%emt 0:00:17]} 27. Rd7 {[%emt 0:01:11]} b6 {[%emt 0:00:48]} 28. Nc7 {[%emt 0:01:30]} Kg8 {[%emt 0:00:33]} 29. Nb5 {[%emt 0:02:04]} a6 {[%emt 0:00:42]} 30. Nd6 {[%emt 0:01:23]} f6 {[%emt 0:00:23]} 31. Rc1 {[%emt 0:02:37]} Rb2 {[%emt 0:00:45]} 32. Rcc7 {[%emt 0:00:52]} Rb1+ {[%emt 0:00:13]} 33. Kf2 {[%emt 0:00:03]} Rb2+ {[%emt 0:00:07]} 34. Kf3 {[%emt 0:00:19]} Rxb3+ {[%emt 0:01:02]} 35. Kf4 {[%emt 0:00:13]} Ra8 {[%emt 0:00:22]} 36. Rg7+ {[%emt 0:00:11]} Kh8 {[%emt 0:00:21]} 37. Rxh7+ {[%emt 0:00:09]} Kg8 {[%emt 0:00:06]} 38. Rcg7+ {[%emt 0:01:51]} Kf8 {[%emt 0:00:03]} 39. Rxg6 {[%emt 0:00:57]} 1-0

[Event "WYCC 2018 G14"]
[Site "Halkidiki"]
[Date "2018.10.30"]
[Round "11"]
[White "Brunner, Sophia"]
[Black "Baiburina, Kamilla"]
[Result "0-1"]
[ECO "C22"]
[WhiteElo "1812"]
[BlackElo "1907"]
[Annotator "NA"]
[PlyCount "72"]
[EventDate "2018.10.20"]
[EventType "swiss"]
[EventCountry "GRE"]
[SourceTitle "playchess.com"]
[Source "ChessBase"]
[SourceQuality "1"]
[TimeControl "40/5400+30:1800+30"]

1. e4 {[%emt 0:00:00]} e5 {[%emt 0:00:00]} 2. d4 {[%emt 0:00:00]} exd4 {[%emt 0:00:29]} 3. Qxd4 {[%emt 0:00:00]} Nc6 {[%emt 0:00:18]} 4. Qe3 {[%emt 0:00:24]} Nf6 {[%emt 0:00:35]} 5. Nc3 {[%emt 0:00:19]} Bb4 {[%emt 0:00:07]} 6. Bd2 {[%emt 0:03:01]} O-O {[%emt 0:01:18]} 7. O-O-O {[%emt 0:00:26]} Re8 {[%emt 0:01:16]} 8. Qg3 {[%emt 0:00:32]} Rxe4 {[%emt 0:09:54]} 9. f4 {[%emt 0:03:21]} d5 {[%emt 0:06:24]} 10. Bd3 {[%emt 0:09:03]} Re8 {[%emt 0:02:15]} 11. Nf3 {[%emt 0:14:17]} d4 $15 {[%emt 0:06:05]} ({Better is} 11... Bf8 $17 12. Rde1 Rxe1+ 13. Rxe1 Nb4) 12. Ne2 {[%emt 0:02:43]} Qd5 {[%emt 0:03:53]} 13. Kb1 {[%emt 0:06:43]} Be6 {[%emt 0:03:08]} 14. b3 {[%emt 0:00:29]} Bxd2 {[%emt 0:05:41]} 15. Rxd2 {[%emt 0:02:09]} Qa5 {[%emt 0:01:43]} 16. Kb2 {[%emt 0:07:16]} Nb4 {[%emt 0:04:14]} 17. a3 {[%emt 0:06:31]} Nxd3+ {[%emt 0:02:21]} 18. cxd3 {[%emt 0:00:38]} c5 {[%emt 0:02:10]} 19. Rhd1 {[%emt 0:09:33]} Qb6 {[%emt 0:01:40]} 20. Nc1 {[%emt 0:01:54]} a5 {[%emt 0:01:49]} 21. a4 {[%emt 0:01:26]} Bd7 {[%emt 0:03:32]} 22. Ka1 {[%emt 0:02:22]} Re3 {[%emt 0:01:05]} 23. Qg5 {[%emt 0:01:50]} Be6 {[%emt 0:01:16]} 24. Rb2 {[%emt 0:03:03]} Nd5 {[%emt 0:02:06]} 25. f5 {[%emt 0:01:36]} f6 {[%emt 0:00:38]} 26. Qg4 {[%emt 0:01:09]} Bf7 {[%emt 0:00:39]} 27. Nd2 {[%emt 0:01:00]} Nc3 {[%emt 0:01:50]} 28. Rf1 {[%emt 0:00:39]} Qb4 {[%emt 0:01:13]} 29. Nb1 {[%emt 0:05:35]} b5 {[%emt 0:03:56]} 30. Rff2 {[%emt 0:08:26]} bxa4 {[%emt 0:02:24]} 31. bxa4 {[%emt 0:00:22]} Qxa4+ {[%emt 0:00:16]} 32. Na2 {[%emt 0:00:25]} Nxa2 {[%emt 0:01:14]} 33. Rxa2 {[%emt 0:00:51]} Bxa2 {[%emt 0:00:09]} 34. Rxa2 {[%emt 0:00:05]} Qe8 {[%emt 0:00:14]} 35. Ra3 {[%emt 0:01:01]} Rb8 {[%emt 0:00:18]} 36. Qf4 {[%emt 0:00:37]} Re1 {[%emt 0:00:21]} 0-1

[Event "WYCC 2018 G14"]
[Site "Halkidiki"]
[Date "2018.10.30"]
[Round "11"]
[White "Obada, Ema"]
[Black "Velea, Anne-Marie"]
[Result "1/2-1/2"]
[ECO "B24"]
[WhiteElo "1811"]
[BlackElo "1859"]
[Annotator "NA"]
[PlyCount "46"]
[EventDate "2018.10.20"]
[EventType "swiss"]
[EventCountry "GRE"]
[SourceTitle "playchess.com"]
[Source "ChessBase"]
[SourceQuality "1"]
[TimeControl "40/5400+30:1800+30"]

1. e4 {[%emt 0:00:00]} c5 {[%emt 0:00:00]} 2. Nc3 {[%emt 0:00:00]} Nc6 {[%emt 0:00:00]} 3. Bb5 {[%emt 0:00:00]} Nd4 {[%emt 0:00:00]} 4. Bc4 {[%emt 0:00:00]} g6 {[%emt 0:00:04]} 5. Nge2 {[%emt 0:00:04]} Bg7 {[%emt 0:00:12]} 6. O-O {[%emt 0:01:34]} d6 {[%emt 0:01:46]} 7. d3 {[%emt 0:00:55]} e6 {[%emt 0:01:57]} 8. f4 {[%emt 0:02:53]} Ne7 {[%emt 0:01:28]} 9. Nxd4 {[%emt 0:01:05]} Bxd4+ {[%emt 0:08:09]} 10. Kh1 {[%emt 0:00:32]} O-O {[%emt 0:02:06]} 11. Bb3 {[%emt 0:05:20]} b6 {[%emt 0:07:29]} 12. Ne2 {[%emt 0:00:53]} Bg7 {[%emt 0:00:56]} 13. Ng3 {[%emt 0:01:42]} d5 {[%emt 0:04:27]} 14. Qe2 {[%emt 0:14:21]} b5 {[%emt 0:11:15]} 15. c3 {[%emt 0:04:56]} f5 {[%emt 0:12:32]} 16. e5 {[%emt 0:04:41]} Bb7 {[%emt 0:03:39]} 17. Be3 {[%emt 0:05:47]} Qc7 {[%emt 0:01:19]} 18. Qf2 {[%emt 0:01:53]} Rfc8 {[%emt 0:03:17]} 19. Ne2 {[%emt 0:06:31]} Bf8 {[%emt 0:05:46]} 20. Ng1 {[%emt 0:01:30]} a6 {[%emt 0:07:40]} 21. Nf3 {[%emt 0:01:57]} h6 {[%emt 0:01:23]} 22. h4 {[%emt 0:02:32]} h5 {[%emt 0:05:45]} 23. Ng5 {[%emt 0:00:30]} Qc6 1/2-1/2

[Event "WYCC 2018 G14"]
[Site "Halkidiki"]
[Date "2018.10.30"]
[Round "11"]
[White "Bardorz, Jana"]
[Black "Yedigaryan, Asya"]
[Result "0-1"]
[ECO "B34"]
[WhiteElo "1810"]
[BlackElo "1726"]
[Annotator "NA"]
[PlyCount "100"]
[EventDate "2018.10.20"]
[EventType "swiss"]
[EventCountry "GRE"]
[SourceTitle "playchess.com"]
[Source "ChessBase"]
[SourceQuality "1"]
[TimeControl "40/5400+30:1800+30"]

1. e4 {[%emt 0:00:00]} c5 {[%emt 0:00:00]} 2. Nf3 {[%emt 0:00:00]} Nc6 {[%emt 0:00:00]} 3. d4 {[%emt 0:00:00]} cxd4 {[%emt 0:00:00]} 4. Nxd4 {[%emt 0:00:00]} Nf6 {[%emt 0:00:00]} 5. Nc3 {[%emt 0:00:00]} e5 {[%emt 0:00:00]} 6. Ndb5 {[%emt 0:04:06]} Bb4 {[%emt 0:00:21]} 7. Nd6+ {[%emt 0:03:13]} Ke7 {[%emt 0:00:05]} 8. Nf5+ {[%emt 0:05:00]} Kf8 {[%emt 0:00:07]} 9. Bc4 {[%emt 0:09:16]} d5 {[%emt 0:04:36]} 10. exd5 {[%emt 0:10:45]} Bxf5 {[%emt 0:00:20]} 11. dxc6 {[%emt 0:02:53]} Qxd1+ {[%emt 0:00:12]} 12. Kxd1 {[%emt 0:00:07]} Rd8+ {[%emt 0:02:31]} 13. Ke2 {[%emt 0:02:23]} bxc6 {[%emt 0:01:16]} 14. Bd3 {[%emt 0:03:26]} e4 {[%emt 0:04:39]} 15. Bc4 {[%emt 0:03:43]} Nd5 {[%emt 0:20:17]} 16. Bd2 {[%emt 0:09:57]} Bc5 {[%emt 0:12:56]} 17. Rhe1 {[%emt 0:06:17]} Nb6 {[%emt 0:02:24]} 18. Ba6 {[%emt 0:08:20]} Bg4+ {[%emt 0:01:25]} 19. f3 {[%emt 0:00:56]} exf3+ {[%emt 0:00:06]} 20. gxf3 {[%emt 0:00:18]} Re8+ {[%emt 0:00:42]} 21. Kd1 {[%emt 0:01:17]} Bxf3+ {[%emt 0:00:10]} 22. Be2 {[%emt 0:00:58]} Bxe2+ {[%emt 0:00:47]} 23. Rxe2 {[%emt 0:01:42]} f5 {[%emt 0:03:37]} 24. Rxe8+ {[%emt 0:02:43]} Kxe8 {[%emt 0:04:44]} 25. Ke2 {[%emt 0:00:17]} Kf7 {[%emt 0:00:10]} 26. Bf4 {[%emt 0:03:24]} Nc4 {[%emt 0:08:45]} 27. Na4 {[%emt 0:03:05]} Be7 {[%emt 0:01:16]} 28. b3 {[%emt 0:01:11]} Nd6 {[%emt 0:04:23]} 29. Rd1 {[%emt 0:01:44]} Rd8 {[%emt 0:00:51]} 30. Be3 {[%emt 0:01:58]} Nc8 {[%emt 0:03:40]} 31. Rf1 {[%emt 0:03:06]} g6 {[%emt 0:05:09]} 32. c4 {[%emt 0:02:02]} Re8 {[%emt 0:01:07]} 33. Kd3 {[%emt 0:01:57]} Rd8+ {[%emt 0:01:41]} 34. Ke2 {[%emt 0:00:06]} Bd6 {[%emt 0:00:39]} 35. h3 {[%emt 0:01:38]} Re8 {[%emt 0:00:21]} 36. Kd3 {[%emt 0:00:21]} Re4 {[%emt 0:00:59]} 37. Bg5 {[%emt 0:02:11]} h6 {[%emt 0:01:02]} 38. Nc3 {[%emt 0:01:24]} Re8 {[%emt 0:00:07]} 39. Bxh6 {[%emt 0:01:50]} Rh8 {[%emt 0:00:25]} 40. Be3 {[%emt 0:00:00]} Rxh3 {[%emt 0:00:00]} 41. Ne4 {[%emt 0:04:27]} Be7 {[%emt 0:00:34]} 42. Nf2 {[%emt 0:05:05]} Rh4 {[%emt 0:04:06]} 43. c5 {[%emt 0:04:12]} Bf6 {[%emt 0:01:53]} 44. Rg1 {[%emt 0:03:41]} Ne7 {[%emt 0:01:30]} 45. Bg5 {[%emt 0:01:29]} Bxg5 {[%emt 0:01:16]} 46. Rxg5 {[%emt 0:00:05]} Nd5 {[%emt 0:00:09]} 47. a3 {[%emt 0:01:23]} Rh2 {[%emt 0:00:43]} 48. Ke2 {[%emt 0:02:04]} Nf4+ {[%emt 0:00:59]} 49. Ke3 {[%emt 0:01:29]} Rxf2 {[%emt 0:00:09]} 50. Rg1 {[%emt 0:01:00]} Rg2 {[%emt 0:00:20]} 0-1

[Event "WYCC 2018 G14"]
[Site "Halkidiki"]
[Date "2018.10.30"]
[Round "11"]
[White "Zeng, Sheena"]
[Black "Tien, Sophie"]
[Result "1/2-1/2"]
[ECO "D35"]
[WhiteElo "1807"]
[BlackElo "1648"]
[Annotator "NA"]
[PlyCount "99"]
[EventDate "2018.10.20"]
[EventType "swiss"]
[EventCountry "GRE"]
[SourceTitle "playchess.com"]
[Source "ChessBase"]
[SourceQuality "1"]
[TimeControl "40/5400+30:1800+30"]

1. d4 {[%emt 0:01:42]} d5 {[%emt 0:00:00]} 2. c4 {[%emt 0:00:12]} e6 {[%emt 0:00:11]} 3. Nc3 {[%emt 0:00:08]} Nf6 {[%emt 0:00:10]} 4. cxd5 {[%emt 0:00:11]} exd5 {[%emt 0:00:20]} 5. Bg5 {[%emt 0:00:07]} Be7 {[%emt 0:00:29]} 6. e3 {[%emt 0:00:11]} Nbd7 {[%emt 0:01:44]} 7. Qc2 {[%emt 0:00:58]} O-O {[%emt 0:01:11] D35: Queen's Gambit Declined: Exchange Variation} 8. h3 $146 {[%emt 0:02:44]} ({Predecessor:} 8. Bd3 h6 9. Bf4 a6 10. Nf3 b6 11. O-O c5 12. Rfd1 Bb7 13. Rac1 c4 14. Bf5 b5 15. a3 Re8 16. Ne5 Bf8 17. Qe2 {0-1 (50) Tregubov,P (2589)-Dourerassou,J (2484) Paris 2017}) 8... b6 {[%emt 0:03:50]} 9. Nf3 {[%emt 0:01:43]} c5 {[%emt 0:02:32]} 10. Bd3 {[%emt 0:05:34]} Bb7 {[%emt 0:03:35]} 11. O-O {[%emt 0:09:45]} h6 {[%emt 0:08:29]} 12. Bf4 {[%emt 0:00:28]} a6 {[%emt 0:00:56]} 13. Bf5 {[%emt 0:06:46]} Re8 {[%emt 0:05:03]} 14. Bxd7 {[%emt 0:08:41]} Qxd7 {[%emt 0:00:49]} 15. Ne5 {[%emt 0:02:48]} Qe6 {[%emt 0:01:06]} 16. Bh2 {[%emt 0:01:41]} Nd7 {[%emt 0:06:49]} 17. Ne2 {[%emt 0:07:53]} Bd6 {[%emt 0:05:04]} 18. Nxd7 {[%emt 0:05:44]} Qxd7 {[%emt 0:00:22]} 19. Bxd6 {[%emt 0:08:05]} Qxd6 {[%emt 0:00:11]} 20. Rac1 {[%emt 0:00:32]} c4 {[%emt 0:00:52]} 21. Ng3 {[%emt 0:02:22]} b5 {[%emt 0:01:34]} 22. f4 {[%emt 0:05:11]} Bc8 {[%emt 0:03:29]} 23. Rf3 {[%emt 0:00:24]} Ra7 {[%emt 0:05:25]} 24. f5 {[%emt 0:02:23]} a5 {[%emt 0:01:56]} 25. Qf2 {[%emt 0:05:22]} Qf6 {[%emt 0:08:57]} 26. Nh5 {[%emt 0:09:21]} Qd6 {[%emt 0:04:29]} 27. Qh4 {[%emt 0:01:59]} Re4 {[%emt 0:04:59]} 28. Qf2 {[%emt 0:02:29]} Kh8 {[%emt 0:05:58]} 29. g4 {[%emt 0:04:13]} f6 {[%emt 0:04:02]} 30. Kg2 {[%emt 0:01:38]} Kg8 {[%emt 0:02:30]} 31. Nf4 {[%emt 0:03:38]} Kf7 {[%emt 0:03:56]} 32. Ne2 {[%emt 0:01:24]} Bd7 $11 {[%emt 0:04:47]} 33. Rf4 {[%emt 0:01:17]} Re7 {[%emt 0:01:22]} 34. h4 {[%emt 0:00:33]} Ke8 {[%emt 0:00:52]} 35. Qf3 {[%emt 0:00:35]} Bc6 {[%emt 0:00:41]} 36. g5 {[%emt 0:00:55]} hxg5 {[%emt 0:01:08]} 37. hxg5 {[%emt 0:00:06]} fxg5 {[%emt 0:00:59]} 38. Rg4 {[%emt 0:00:27]} Qf6 {[%emt 0:03:43]} 39. Ng3 {[%emt 0:00:49]} Rf7 {[%emt 0:02:15]} 40. Nh5 {[%emt 0:00:00]} Qd8 {[%emt 0:00:00]} 41. Rh1 {[%emt 0:02:39]} Kd7 {[%emt 0:08:16]} 42. Qg3 {[%emt 0:01:52]} Qe7 {[%emt 0:03:53]} 43. Rxg5 {[%emt 0:01:48]} Kc8 {[%emt 0:00:58]} 44. Qf4 {[%emt 0:02:59]} Kb7 {[%emt 0:03:02]} 45. Ng3 {[%emt 0:04:48]} Kb6 {[%emt 0:03:04]} 46. Rg6 {[%emt 0:01:06]} Rf6 {[%emt 0:01:48]} 47. Rh8 {[%emt 0:02:01]} Bd7 {[%emt 0:04:31]} 48. Qg5 {[%emt 0:09:45]} Be8 {[%emt 0:04:01]} 49. Rxf6+ {[%emt 0:03:01]} gxf6 {[%emt 0:00:21]} 50. Qf4 {[%emt 0:02:00]} 1/2-1/2

[Event "WYCC 2018 G14"]
[Site "Halkidiki"]
[Date "2018.10.30"]
[Round "11"]
[White "Anghel, Maria"]
[Black "He, Emma"]
[Result "1-0"]
[ECO "D30"]
[WhiteElo "1801"]
[BlackElo "1674"]
[Annotator "NA"]
[PlyCount "103"]
[EventDate "2018.10.20"]
[EventType "swiss"]
[EventCountry "GRE"]
[SourceTitle "playchess.com"]
[Source "ChessBase"]
[SourceQuality "1"]
[TimeControl "40/5400+30:1800+30"]

1. d4 {[%emt 0:00:00]} d5 {[%emt 0:00:00]} 2. Nf3 {[%emt 0:00:00]} Nf6 {[%emt 0:00:00]} 3. c4 {[%emt 0:00:03]} e6 {[%emt 0:00:16]} 4. e3 {[%emt 0:00:35]} c6 {[%emt 0:00:32]} 5. Nbd2 {[%emt 0:00:21]} Nbd7 {[%emt 0:00:55]} 6. Bd3 {[%emt 0:00:29]} Bd6 {[%emt 0:02:14]} 7. O-O {[%emt 0:01:39]} O-O {[%emt 0:07:28]} 8. e4 {[%emt 0:00:37]} dxe4 {[%emt 0:04:52]} 9. Nxe4 {[%emt 0:02:01]} Nxe4 {[%emt 0:03:00]} 10. Bxe4 {[%emt 0:00:09]} c5 {[%emt 0:05:42]} 11. dxc5 {[%emt 0:06:32]} Bxc5 {[%emt 0:05:42]} 12. Qe2 {[%emt 0:07:53]} Qc7 {[%emt 0:03:40]} 13. a3 {[%emt 0:06:19]} a5 {[%emt 0:05:36]} 14. b3 {[%emt 0:05:05]} Nf6 {[%emt 0:04:42]} 15. Bc2 {[%emt 0:00:31]} Rd8 {[%emt 0:04:41]} 16. Bb2 {[%emt 0:05:40]} Be7 {[%emt 0:01:02]} 17. Rad1 {[%emt 0:06:58]} b6 {[%emt 0:13:31]} 18. Rxd8+ {[%emt 0:04:01]} Bxd8 {[%emt 0:03:39]} 19. Be5 {[%emt 0:08:59]} Qe7 {[%emt 0:02:07]} 20. Bxf6 {[%emt 0:08:37]} Qxf6 {[%emt 0:01:06]} 21. Qe4 {[%emt 0:04:08]} Rb8 {[%emt 0:03:35]} 22. Qxh7+ {[%emt 0:00:46]} Kf8 {[%emt 0:00:02]} 23. Rd1 {[%emt 0:03:16]} Bb7 {[%emt 0:03:19]} 24. Be4 {[%emt 0:01:44]} Ke7 {[%emt 0:05:56]} 25. Nd4 {[%emt 0:10:42]} Kd6 {[%emt 0:15:49]} 26. Nc6+ {[%emt 0:06:25]} Kc7 {[%emt 0:00:52]} 27. Nxb8 {[%emt 0:00:26]} Kxb8 {[%emt 0:00:18]} 28. Bxb7 {[%emt 0:01:24]} Kxb7 {[%emt 0:00:11]} 29. Qe4+ {[%emt 0:00:18]} Kb8 {[%emt 0:01:42]} 30. g3 {[%emt 0:01:38]} Qe7 {[%emt 0:00:25]} 31. Qe5+ {[%emt 0:02:06]} Bc7 {[%emt 0:00:49]} 32. Qxg7 {[%emt 0:00:52]} Qxa3 {[%emt 0:00:30]} 33. Qc3 {[%emt 0:01:15]} Qc5 {[%emt 0:01:18]} 34. Qe3 {[%emt 0:02:26]} Qb4 {[%emt 0:00:54]} 35. Rd7 {[%emt 0:01:27]} f5 {[%emt 0:00:10]} 36. Rd3 {[%emt 0:00:41]} e5 {[%emt 0:00:26]} 37. Qd2 {[%emt 0:01:05]} Qa3 {[%emt 0:00:26]} 38. h4 {[%emt 0:00:50]} f4 {[%emt 0:00:25]} 39. Kg2 {[%emt 0:00:58]} e4 {[%emt 0:00:47]} 40. Rd4 {[%emt 0:00:00]} fxg3 {[%emt 0:00:00]} 41. Rxe4 {[%emt 0:14:42]} Qxb3 {[%emt 0:02:56]} 42. Re8+ {[%emt 0:03:37]} Ka7 {[%emt 0:02:04]} 43. Qd7 {[%emt 0:02:22]} Qxc4 {[%emt 0:00:35]} 44. Re7 {[%emt 0:00:41]} Kb7 {[%emt 0:05:29]} 45. Qxc7+ {[%emt 0:01:12]} Qxc7 {[%emt 0:00:11]} 46. Rxc7+ {[%emt 0:00:05]} Kxc7 {[%emt 0:00:12]} 47. h5 {[%emt 0:00:14]} gxf2 {[%emt 0:01:23]} 48. Kxf2 {[%emt 0:02:47]} b5 {[%emt 0:01:52]} 49. h6 {[%emt 0:00:13]} b4 {[%emt 0:00:24]} 50. h7 {[%emt 0:00:09]} a4 {[%emt 0:00:34]} 51. h8=Q {[%emt 0:00:17]} b3 {[%emt 0:00:09]} 52. Qc3+ {[%emt 0:00:53]} 1-0